[Event "Swietokrzyskie IM Chess-ch 2022"]
[Site "Zagnansk"]
[Date "2022.05.01"]
[Round "2.3"]
[White "Wikar, WFM Martyna"]
[Black "Malek, Jan"]
[Result "0-1"]
[ECO "B37"]
[WhiteElo "2197"]
[BlackElo "2316"]
[Annotator "TA"]
[PlyCount "70"]
[EventDate "2022.04.29"]
[EventCountry "POL"]
[SourceTitle "playchess.com"]
[Source "ChessBase"]
[SourceQuality "1"]
[TimeControl "40/5400+30:1800+30"]

{[%evp 12,70,0,0,1,0,0,3,0,10,0,0,0,0,12,0,41,33,34,0,13,0,0,0,37,54,88,0,5,-46,-47,-56,-45,-112,-112,-125,-120,-152,-87,-289,-270,-287,-182,-299,-283,-308,-300,-339,-252,-256,-22,-21,-28,-21,-27,-27,-15,-2551,-2367,-29995,-29996]} 1. e4 {[%emt 0:00:03]} c5 {[%emt 0:00:10]} 2. Nf3 {[%emt 0:00:08]} g6 {[%emt 0:00:07]} 3. d4 {[%emt 0:00:36]} cxd4 {[%emt 0:00:06]} 4. Nxd4 {[%emt 0:00:04]} Bg7 {[%emt 0:00:07]} 5. c4 {[%emt 0:00:45]} Nc6 {[%emt 0:00:05]} 6. Nc2 {[%emt 0:01:26]} d6 {[%emt 0:00:48]} 7. Be2 {[%emt 0:01:15]} Be6 $1 {[%emt 0:00:08][%mdl 4] now scores much better than the old 7...Nf6. B37: Sicilian: Maroczy Bind with 5...Bg7, sidelines.} 8. O-O {[%emt 0:03:48]} Rc8 {[%emt 0:02:24]} 9. Ne3 {[%emt 0:05:25]} Nf6 {[%emt 0:09:43] The position is equal.} 10. Nc3 {[%emt 0:00:53]} Na5 {[%emt 0:05:06][%cal Ra5c4]} 11. Qa4+ {[%emt 0:08:33]} Nd7 {[%emt 0:00:30]} 12. Ned5 {[%emt 0:06:37] [#]} Bxc3 $146 {[%emt 0:05:05]} ({Predecessor:} 12... Nc6 13. Be3 Nc5 14. Qa3 Nd4 15. Rac1 Nxe2+ 16. Nxe2 Nxe4 17. Bxa7 O-O 18. Bb6 Qd7 {0-1 (35) Obrusnik,M (2288)-Jaracz,P (2508) Poland 2015}) 13. bxc3 {[%emt 0:01:54]} Nc6 {[%emt 0:05:04]} 14. Bh6 {[%emt 0:07:37]} f6 {[%emt 0:12:05]} 15. f4 {[%emt 0:11:47]} Rg8 {[%emt 0:06:15]} 16. Kh1 {[%emt 0:04:58]} Qa5 {[%emt 0:03:05]} 17. Qd1 {[%emt 0:04:04]} Nc5 {[%emt 0:12:04]} 18. Bg4 {[%emt 0:04:50] Strongly threatening Bxe6.} Qd8 {[%emt 0:06:57]} 19. f5 {[%emt 0:06:20]} (19. Bxe6 $16 Nxe6 20. Qg4) 19... Bd7 {[%emt 0:00:22]} 20. fxg6 {[%emt 0:11:37]} ({Better is} 20. Qe1 $11) 20... hxg6 $15 {[%emt 0:00:03]} 21. Bxd7+ {[%emt 0:01:37]} Nxd7 {[%emt 0:01:30]} 22. Nf4 {[%emt 0:02:47]} (22. Be3 $15) 22... Nc5 $17 {[%emt 0:12:33] And now ...Rh8 would win.} 23. Qd5 {[%emt 0:04:19]} Kd7 $1 {[%emt 0:00:02]} 24. Nxg6 {[%emt 0:04:54][%cal Oh6f4] [#]} Qe8 {[%emt 0:00:07]} (24... Kc7 $142 $1 25. Qf7 Kb8) 25. Nf4 {[%emt 0:03:23]} (25. Nh4 $17 {was forced.}) 25... Ne5 $19 {[%emt 0:00:06]} (25... e6 26. Qd1 $17) 26. Qd2 {[%emt 0:01:40]} Rg4 {[%emt 0:05:28] aiming for ...Qh8.} (26... Nxc4 $2 27. Qe2 Ne5 28. Nd5 $19) 27. Nh3 {[%emt 0:01:07]} (27. Rae1 $142) 27... Qg6 {[%emt 0:00:34]} (27... Rxe4 $2 28. Rae1 $19) (27... Nxe4 $2 28. Qb2 $19) 28. Bf4 {[%emt 0:00:42]} Rg8 {[%emt 0:01:18]} ({But not} 28... Nxc4 $2 29. Qe2 Nxe4 30. Rab1 $19) (28... Qxe4 $2 29. Bxe5 fxe5 30. Ng5 Qxc4 31. h3 $19) 29. Rg1 {[%emt 0:00:42]} Nxe4 {[%emt 0:01:26]} ({Don't go for} 29... Qxe4 $2 30. Bxe5 fxe5 31. Nf2 $19) ({Wrong is} 29... Nxc4 $2 30. Qe2 Qxe4 31. Rae1 Qxe2 32. Rxe2) 30. Qb2 {[%emt 0:00:37]} Nd3 $2 {[%emt 0:07:51] Pair of Knights!} ({Black should try} 30... Kc7 $19 {...Nd3 is the strong threat.} 31. Raf1 Rh4 32. Bxe5 fxe5) 31. Qxb7+ $11 {[%emt 0:00:22]} Ke8 {[%emt 0:00:01][%cal Bd7e8,Be8f7,Bf7f8][%mdl 32] Really sharp!} 32. Qa8+ {[%emt 0:00:52]} Kf7 {[%emt 0:00:01]} 33. Qd5+ {[%emt 0:00:08]} Kf8 {[%emt 0:00:02] ( -> ...Nef2+)} 34. Bh6+ $2 {[%emt 0:01:07][%mdl 8192]} Qxh6 $19 {[%emt 0:00:08]} 35. Qxd3 {[%emt 0:00:06] [#]} Qxh3 $3 {[%emt 0:00:10][%mdl 576] Remove Defender.  Weighted Error Value: White=0.66/Black=0.29 (precise)} 0-1

[Event "Swietokrzyskie IM Chess-ch 2022"]
[Site "Zagnansk"]
[Date "2022.05.01"]
[Round "2.4"]
[White "Prokofiev, Valentyn"]
[Black "Chylewski, FM Patryk"]
[Result "0-1"]
[ECO "A37"]
[WhiteElo "2287"]
[BlackElo "2281"]
[Annotator "TA"]
[PlyCount "70"]
[EventDate "2022.04.29"]
[EventCountry "POL"]
[SourceTitle "playchess.com"]
[Source "ChessBase"]
[SourceQuality "1"]
[TimeControl "40/5400+30:1800+30"]

{[%evp 11,70,9,20,11,9,4,0,-2,12,5,35,-10,-10,-11,-7,-67,-63,-50,-35,-51,-20,-118,-102,-93,-94,-148,-144,-354,-356,-356,-347,-561,-523,-538,-494,-492,-473,-473,-473,-466,-463,-519,-428,-285,-152,-157,-113,-98,-90,-6283,-6186,-29966,-5918,-5918,-5900,-5506,-5389,-4994,-1525,-1075,-967]} 1. Nf3 {[%emt 0:00:01]} c5 {[%emt 0:02:15]} 2. c4 {[%emt 0:00:06]} Nc6 {[%emt 0:00:49]} 3. Nc3 {[%emt 0:01:12]} g6 {[%emt 0:00:38]} 4. g3 {[%emt 0:01:09]} Bg7 {[%emt 0:00:30]} 5. Bg2 {[%emt 0:00:05]} d6 {[%emt 0:00:26]} 6. O-O {[%emt 0:00:17]} e6 {[%emt 0:03:15]} 7. b3 {[%emt 0:03:56] A37: Symmetrical English vs ...g6: 4 Bg2 Bg7 5 Nf3.} Nge7 {[%emt 0:00:57]} 8. Bb2 {[%emt 0:00:59]} O-O {[%emt 0:00:18]} 9. e3 {[%emt 0:01:50] The position is equal.} Rb8 {[%emt 0:15:37]} 10. Qe2 {[%emt 0:09:55] [#]} a6 $146 {[%emt 0:02:47][%cal Ob7b5]} ({Predecessor:} 10... e5 11. d3 h6 12. Nd2 Be6 13. Rac1 Qd7 14. Nd5 Rbe8 15. a3 Bg4 16. f3 Be6 {0-1 (45) Patuzzo,F (2332)-Cvitan,O (2514) Switzerland 2002}) 11. Rfd1 {[%emt 0:22:59]} (11. d4 $5) 11... b5 {[%emt 0:01:53]} 12. d3 {[%emt 0:01:44]} e5 {[%emt 0:17:20]} 13. d4 {[%emt 0:09:48]} (13. Nd2 $11) 13... exd4 {[%emt 0:05:59]} 14. exd4 {[%emt 0:00:37]} cxd4 {[%emt 0:03:59]} 15. Nd5 {[%emt 0:02:38][%cal Rb2d4]} bxc4 {[%emt 0:06:10]} (15... Re8 $5 {[%cal Re7d5]} 16. Qd2 Bg4 $11) 16. Qxc4 {[%emt 0:01:32]} (16. Nxd4 $11 {remains equal.} Ne5 17. Ne3 (17. bxc4 Nxd5 18. Bxd5 Bg4 $17)) 16... Nxd5 $17 {[%emt 0:10:52]} 17. Qxd5 {[%emt 0:07:46]} Ne5 {[%emt 0:05:39] White must now prevent ...Bb7.} 18. Kh1 {[%emt 0:03:42]} ({White should play} 18. Nxd4 Bb7 19. Qxb7 Rxb7 20. Bxb7) 18... Rb4 $1 {[%emt 0:10:18]} 19. Qe4 {[%emt 0:08:16]} (19. Nxe5 $17 dxe5 20. Qxd8 Rxd8 21. Kg1) 19... Bb7 $19 {[%emt 0:02:09]} 20. Qe2 {[%emt 0:13:57]} d3 {[%emt 0:00:54]} 21. Qd2 {[%emt 0:03:19] [#]} (21. Rxd3 {was worth a try.} Nxd3 22. Bxg7 Nxf2+ 23. Qxf2 Kxg7 24. Nd4) 21... Bxf3 $1 {[%emt 0:02:12]} 22. Bxe5 {[%emt 0:00:49]} Bxg2+ {[%emt 0:02:42]} 23. Kxg2 {[%emt 0:00:09] Threatens to win with Bxg7.} Qa8+ {[%emt 0:00:24]} ({Weaker is} 23... dxe5 24. Qxb4 Qa8+ 25. Kg1 $11) 24. Kg1 {[%emt 0:02:32] [#] aiming for Bxg7.} Bxe5 {[%emt 0:00:10]} 25. Qxb4 {[%emt 0:00:02]} Bxa1 {[%emt 0:00:07]} 26. Rxa1 {[%emt 0:00:01][%mdl 4096] Endgame KQR-KQR} Re8 {[%emt 0:03:47]} 27. Qxd6 {[%emt 0:01:37] [#]} Rd8 {[%emt 0:00:32]} (27... Qf3 $1 $19 {...h5 is the strong threat.} 28. a3 h5) 28. Qf4 {[%emt 0:00:15]} d2 {[%emt 0:00:19]} 29. Rd1 {[%emt 0:00:43]} Qc6 $36 {[%emt 0:00:46][%mdl 2048] And now ...Qc2 would win. Black is on the roll. Black is more active.} 30. Qh4 $2 {[%emt 0:02:56][%mdl 8192] [#]} (30. Qg5 $17 Rd5 31. Qe3) 30... Re8 $1 {[%emt 0:00:57]} 31. Qb4 {[%emt 0:00:29]} Re2 {[%emt 0:00:36]} 32. Qb8+ {[%emt 0:00:37] Black is clearly winning.} Kg7 {[%emt 0:00:10] ( -> ...Re1+)} 33. Qb4 {[%emt 0:00:22]} Qf6 {[%emt 0:00:34]} 34. f4 {[%emt 0:00:38]} Qc6 {[%emt 0:00:20]} (34... Qb2 $142 35. Kf1 Rxh2) 35. Qd4+ {[%emt 0:00:17]} Kh6 {[%emt 0:00:18] Weighted Error Value: White=0.85/Black=0.25 (precise)} 0-1

[Event "Swietokrzyskie IM Chess-ch 2022"]
[Site "Zagnansk"]
[Date "2022.05.01"]
[Round "2.5"]
[White "Nowak, FM Lukasz"]
[Black "Kotyk, Michael"]
[Result "1/2-1/2"]
[ECO "E07"]
[WhiteElo "2376"]
[BlackElo "2170"]
[Annotator "TA"]
[PlyCount "84"]
[EventDate "2022.04.29"]
[EventCountry "POL"]
[SourceTitle "playchess.com"]
[Source "ChessBase"]
[SourceQuality "1"]
[TimeControl "40/5400+30:1800+30"]

{[%evp 18,84,21,14,53,-17,-12,-13,-8,-10,-10,-12,0,-19,-19,-14,-11,-13,-10,-10,-12,-52,-50,-47,-31,-50,-50,-72,-77,-80,-81,-85,-78,-81,-37,-27,-38,-34,-34,-42,-37,-78,-78,-90,-90,-79,-78,-90,-78,-78,-78,-78,-78,-90,-90,-90,0,-90,0,-78,-78,-78,-78,-83,-14,-14,-14,-56,-50]} 1. d4 {[%emt 0:00:06]} Nf6 {[%emt 0:00:06]} 2. c4 {[%emt 0:00:08]} e6 {[%emt 0:00:05]} 3. Nf3 {[%emt 0:00:07]} d5 {[%emt 0:00:04]} 4. g3 {[%emt 0:00:08]} Be7 {[%emt 0:00:05]} 5. Bg2 {[%emt 0:00:06]} O-O {[%emt 0:00:05]} 6. O-O {[%emt 0:00:09]} c6 {[%emt 0:00:04]} 7. Nc3 {[%emt 0:00:10]} Nbd7 {[%emt 0:01:08]} 8. Qd3 {[%emt 0:00:13]} b6 {[%emt 0:01:12]} 9. e4 {[%emt 0:00:14]} Ba6 {[%emt 0:14:20]} 10. b3 {[%emt 0:00:17]} b5 {[%emt 0:05:25][%cal Rb5c4] E07: Closed Catalan: Main Line (5 Nf3 0-0 6 0-0 Nbd7).} 11. c5 {[%emt 0:48:49]} ({Inferior is} 11. cxb5 Bxb5 12. Qc2 (12. Nxb5 $2 dxe4 13. Qe2 exf3 $19) 12... dxe4 13. Nxe4 Bxf1 14. Bxf1 Nxe4 15. Qxe4 c5 $17) (11. cxd5 $14 cxd5 12. e5) 11... dxe4 $11 {[%emt 0:02:06]} 12. Nxe4 {[%emt 0:03:04] [#]} Nxc5 $1 {[%emt 0:04:35] The position is equal.} 13. Nxc5 {[%emt 0:00:35]} Bxc5 {[%emt 0:00:05][%mdl 64] [#] Pin} 14. Bg5 $146 {[%emt 0:00:26]} ({Predecessor:} 14. Qc2 Bb6 15. Rd1 Bb7 16. a4 h6 17. Ba3 Re8 18. Bc5 bxa4 19. bxa4 Qc7 20. Ne5 {1-0 (30) Erdos,V (2612)-Zajic,M (2485) Skopje 2019}) 14... Bb6 {[%emt 0:09:39]} 15. Rfd1 {[%emt 0:00:20]} h6 {[%emt 0:09:32]} 16. Bxf6 {[%emt 0:00:12]} Qxf6 {[%emt 0:00:05]} 17. Ne5 {[%emt 0:02:13]} Rad8 $36 {[%emt 0:03:13][%mdl 2048] Against Nd7. Black is more active.} 18. Nxc6 {[%emt 0:00:15]} Rd6 {[%emt 0:01:39]} 19. Qf3 {[%emt 0:14:39]} Qxf3 $1 {[%emt 0:12:04]} 20. Bxf3 {[%emt 0:00:09]} Re8 {[%emt 0:05:20]} 21. Rac1 {[%emt 0:25:13]} Bb7 {[%emt 0:06:35]} 22. Kf1 {[%emt 0:00:34]} Kf8 {[%emt 0:06:22]} 23. Ne5 {[%emt 0:00:37]} Bxf3 {[%emt 0:00:27]} 24. Nxf3 {[%emt 0:00:06]} Red8 {[%emt 0:00:43]} 25. Ke2 {[%emt 0:00:14]} Bxd4 {[%emt 0:02:20]} (25... g5 {is interesting.} 26. h3 Kg7 27. g4 Kg6) 26. Nxd4 {[%emt 0:00:51]} Rxd4 {[%emt 0:00:03]} 27. Rxd4 {[%emt 0:00:09]} Rxd4 $17 {[%emt 0:00:02][%mdl 4096] Endgame KR-KR} 28. Rc7 {[%emt 0:02:08]} a5 {[%emt 0:02:13]} 29. Rb7 {[%emt 0:00:58] [#]} b4 {[%emt 0:00:21]} 30. h4 {[%emt 0:00:14]} g6 {[%emt 0:01:49]} 31. Ra7 {[%emt 0:00:37]} Rd5 {[%emt 0:00:07]} 32. Ke3 {[%emt 0:00:10]} h5 {[%emt 0:00:48]} 33. Ke2 {[%emt 0:00:14]} Kg7 {[%emt 0:00:19]} 34. Ke3 {[%emt 0:00:17]} Kf6 {[%emt 0:00:12]} 35. Ke2 {[%emt 0:00:11]} Rc5 {[%emt 0:08:18] Strongly threatening ...Rc2+.} 36. Ke3 {[%emt 0:01:09]} Rd5 {[%emt 0:05:20]} 37. Ke2 $1 {[%emt 0:00:53]} Kg7 {[%emt 0:00:04]} 38. Ke3 {[%emt 0:00:09]} Rf5 {[%emt 0:00:18]} 39. Ke2 {[%emt 0:00:38]} Kh6 {[%emt 0:00:42]} 40. Ra8 {[%emt 0:00:00]} f6 {[%emt 0:00:00]} (40... Rc5 $17 {Hoping for ...Rc2+.} 41. Ke3 Kh7) 41. Ra6 $11 {[%emt 0:22:33]} Re5+ {[%emt 0:17:14]} 42. Kd3 {[%emt 0:00:13]} Kg7 {[%emt 0:08:33] Weighted Error Value: White=0.11 (very precise) /Black=0.15 (very precise)} 1/2-1/2

[Event "Swietokrzyskie IM Chess-ch 2022"]
[Site "Zagnansk"]
[Date "2022.05.01"]
[Round "3.1"]
[White "Kotyk, Michael"]
[Black "Sieciechowicz, IM Marcin"]
[Result "0-1"]
[ECO "E71"]
[WhiteElo "2170"]
[BlackElo "2388"]
[Annotator "TA"]
[PlyCount "152"]
[EventDate "2022.04.29"]
[EventCountry "POL"]
[SourceTitle "playchess.com"]
[Source "ChessBase"]
[SourceQuality "1"]
[TimeControl "40/5400+30:1800+30"]

{[%evp 13,152,38,37,25,31,22,55,50,61,63,57,39,47,0,6,0,15,0,31,4,44,44,42,43,54,18,200,113,1167,603,619,570,933,36,27,-67,-71,-71,-71,-71,-41,-19,-8,-15,-23,-313,-309,-265,-27,-229,-244,-245,-206,-201,-202,-210,-278,-301,-298,-306,-240,-297,-189,-175,-152,-146,0,0,0,0,0,0,0,-52,-45,-53,-52,-56,-8,-8,0,-117,-117,-452,0,0,0,0,0,-337,0,-902,0,0,0,0,0,0,0,0,0,0,0,0,0,0,0,0,0,0,0,0,0,0,0,0,0,0,0,0,0,0,0,0,0,0,0,0,0,0,0,-29987,-29988,-29988,-29989,-29991,-29991,-29991,-29992,-29998,-29998]} 1. d4 {[%emt 0:00:02]} Nf6 {[%emt 0:04:47]} 2. c4 {[%emt 0:02:34]} g6 {[%emt 0:00:08]} 3. Nc3 {[%emt 0:00:03]} Bg7 {[%emt 0:00:04]} 4. e4 {[%emt 0:00:04]} d6 {[%emt 0:00:03]} 5. h3 {[%emt 0:00:05]} O-O {[%emt 0:00:04]} 6. Be3 {[%emt 0:00:02]} e5 {[%emt 0:00:22]} 7. d5 {[%emt 0:00:24]} a5 {[%emt 0:00:05]} 8. g4 {[%emt 0:00:17] E71: King's Indian: 4 e4 d6 5 h3.} Na6 {[%emt 0:00:37]} 9. Nge2 {[%emt 0:00:06]} Nc5 {[%emt 0:00:40]} 10. Ng3 {[%emt 0:00:08] White is slightly better.} c6 {[%emt 0:00:15]} 11. Be2 {[%emt 0:00:07]} cxd5 {[%emt 0:05:30]} 12. cxd5 {[%emt 0:01:04]} Bd7 {[%emt 0:00:12]} 13. g5 {[%emt 0:07:07]} Ne8 {[%emt 0:00:16]} 14. h4 {[%emt 0:00:04] [#]} f5 $146 {[%emt 0:05:22]} ({Predecessor:} 14... a4 15. Qd2 Rc8 16. h5 f6 17. hxg6 hxg6 18. gxf6 Nxf6 19. f3 Qe8 20. Rc1 Nh7 {½-½ (51) Olsen,F (2357)-Baenziger,F (2388) Kiel 2021}) 15. gxf6 {[%emt 0:00:05]} Nxf6 {[%emt 0:00:23]} 16. h5 {[%emt 0:00:34]} gxh5 {[%emt 0:00:49]} 17. Nxh5 {[%emt 0:12:31]} Nxh5 {[%emt 0:00:18]} 18. Rxh5 {[%emt 0:00:33]} Rc8 {[%emt 0:03:28]} 19. Kd2 {[%emt 0:10:17] Threatening Qh1.} b5 $2 {[%emt 0:08:13]} (19... Be8 $11) 20. Qh1 $1 $18 {[%emt 0:01:12]} (20. Qg1 b4 21. Nb5 Nxe4+ 22. Ke1 Qe8 $17) 20... b4 $2 {[%emt 0:12:25][%mdl 8192]} (20... Rf6 $16) 21. Nb5 {[%emt 0:00:16]} Be8 {[%emt 0:08:56]} 22. Rxh7 {[%emt 0:02:49]} Bg6 {[%emt 0:00:11] [#]} 23. Rh4 {[%emt 0:04:24]} ({Only move:} 23. Rxg7+ $1 $18 {[%mdl 512]} Kxg7 24. Qh6+ Kf7 25. Rg1) 23... Rf4 $1 $14 {[%emt 0:04:08]} 24. Rxf4 {[%emt 0:11:35]} ({White should play} 24. Bxf4 $11 Nxe4+ 25. Ke1 exf4 26. Rxf4) 24... exf4 $15 {[%emt 0:00:41][%mdl 64] Discovered Attack} 25. Bxc5 {[%emt 0:00:12]} Rxc5 {[%emt 0:00:38]} 26. Qh3 {[%emt 0:04:28]} f3 {[%emt 0:17:38] Dancing on a razor blade.} (26... Qf6 $5 {[%cal Rf6b2]} 27. Qe6+ Qxe6 28. dxe6 f3 $17) 27. Qxf3 {[%emt 0:03:05] Black must now prevent Rg1.} (27. Qe6+ $2 Bf7 28. Qxd6 Qg5+ 29. Kd3 Rxb5 30. Bxf3 b3 $19) 27... Qg5+ {[%emt 0:00:25]} 28. Qe3 {[%emt 0:01:57]} Qe5 $36 {[%emt 0:00:53][%mdl 2048] Black has some pressure.} 29. Rc1 $2 {[%emt 0:03:46][%mdl 8192]} (29. Rg1 $11 Qxb2+ 30. Ke1 Qb1+ 31. Bd1) 29... Rxc1 $19 {[%emt 0:03:59]} (29... Qxb2+ 30. Kd1 $15) ({Inferior is} 29... Bxe4 30. Rxc5 dxc5 31. d6 $11) (29... Bh6 $2 30. Qxh6 Qxb2+ 31. Kd1 $18) 30. Kxc1 {[%emt 0:00:07]} Bxe4 $2 {[%emt 0:05:10]} (30... Qxb2+ $19 31. Kd1 Qxa2) 31. f3 $2 {[%emt 0:02:18]} (31. b3 $11 {and White is okay.}) 31... Qxb2+ {[%emt 0:01:28]} 32. Kd1 {[%emt 0:00:01]} Qb1+ {[%emt 0:03:37]} 33. Kd2 {[%emt 0:05:49]} Qxa2+ {[%emt 0:01:28]} 34. Ke1 {[%emt 0:00:34]} Qa1+ $1 {[%emt 0:00:54]} ({Weaker is} 34... Bxd5 35. Qe8+ Bf8 36. Qg6+ Bg7 37. Qe8+ Bf8 38. Qg6+ Bg7 39. Qe8+ $11) 35. Kf2 {[%emt 0:00:20]} Bxd5 {[%emt 0:00:58] This bishop pair is nice.} 36. Qe8+ {[%emt 0:00:42]} Bf8 {[%emt 0:00:08]} 37. Nxd6 {[%emt 0:03:47]} Qd4+ {[%emt 0:02:53]} 38. Kf1 {[%emt 0:00:23]} Qf6 {[%emt 0:04:01] Inhibits Qg6+.} 39. Ne4 {[%emt 0:00:42]} Qf7 {[%emt 0:03:23]} (39... Qf5 $1 $17 {[%cal Oa5a4] aiming for ...a4!} 40. Ke1 b3) 40. Qe5 $11 {[%emt 0:00:00]} Bg7 {[%emt 0:00:00] Inhibits Nf6+.} 41. Qb8+ {[%emt 0:18:33]} Qf8 {[%emt 0:16:02]} 42. Qb5 {[%emt 0:02:53][%csl LRa5,LRd5]} Qd8 {[%emt 0:02:07]} 43. Kg2 {[%emt 0:08:42]} (43. Bc4 $11 Bxc4+ 44. Qxc4+ Kh8 45. Qe6) 43... Kh8 $15 {[%emt 0:00:52]} 44. Bc4 {[%emt 0:02:31] Against b3} Bxc4 {[%emt 0:00:13]} 45. Qxc4 {[%emt 0:00:01]} Qg8 {[%emt 0:07:03]} (45... Qd7 $1 $15 {is more appropriate.} 46. Kf1 Qh3+ 47. Kf2 Qf5) 46. Qb5 $11 {[%emt 0:01:31]} Bd4+ {[%emt 0:03:22]} 47. Kh3 {[%emt 0:00:37]} (47. Ng5 $1 $11 {was the only way to keep the balance.}) 47... Qe6+ $1 $17 {[%emt 0:00:56]} 48. Kh4 $2 {[%emt 0:06:22][%mdl 8192] [#]} (48. Kg2 $17 {was the crucial defense.}) 48... Bf6+ $2 {[%emt 0:03:09]} (48... Qe5 $1 $19 49. Qb7 Qf4+ 50. Kh5 Qxf3+ 51. Kg6 Qg2+ 52. Kf5 Qh3+ 53. Kg6 Qg2+ 54. Kf5 Qh3+ 55. Kg6 Qe6+ 56. Kh5 Bf6 57. Nxf6 Qf5+ 58. Kh6 Qxf6+ 59. Kh5 Qf5+ 60. Kh6 Qe6+ 61. Kg5 b3) 49. Nxf6 $11 {[%emt 0:00:07]} Qxf6+ {[%emt 0:00:01][%mdl 4096] Endgame KQ-KQ} 50. Kg4 {[%emt 0:00:17]} Qe6+ {[%emt 0:00:27]} 51. Kg5 $2 {[%emt 0:00:09][%mdl 8192]} (51. Kf4 $11 {and White has nothing to worry.}) 51... Qe7+ $2 {[%emt 0:00:48]} ({Better is} 51... Kg7 $19 {Hoping for ...b3.} 52. Qb7+ Qf7) 52. Kg4 $2 {[%emt 0:00:54][%mdl 8192] [#]} (52. Kf5 $11) 52... Qc7 $2 {[%emt 0:00:51]} (52... b3 $1 $19 {( -> ...Qb4+)} 53. f4 b2) 53. f4 {[%emt 0:00:54]} Kg7 {[%emt 0:01:18]} 54. f5 {[%emt 0:03:15]} Kf8 {[%emt 0:01:06]} 55. Kg5 {[%emt 0:05:19]} Qg3+ {[%emt 0:00:04]} 56. Kh5 $1 {[%emt 0:00:48]} Qh3+ {[%emt 0:00:11]} 57. Kg5 {[%emt 0:00:52]} Qe3+ {[%emt 0:00:37]} 58. Kg4 {[%emt 0:02:27]} Qa7 {[%emt 0:00:32]} 59. Kg5 {[%emt 0:01:31]} Qg7+ {[%emt 0:00:46]} 60. Kf4 {[%emt 0:00:14]} Qd4+ {[%emt 0:00:11]} 61. Kg5 {[%emt 0:00:24]} Qd2+ {[%emt 0:00:06]} 62. Kg4 {[%emt 0:01:08]} Qd8 {[%emt 0:00:36]} 63. Qc5+ {[%emt 0:01:10]} Kf7 {[%emt 0:00:32]} 64. Qa7+ {[%emt 0:02:17]} Kg8 {[%emt 0:01:27]} (64... Kf6 $5 65. Qa6+ Kg7 $11) 65. Kh5 {[%emt 0:01:34]} b3 {[%emt 0:01:05] Threatens to win with ...b2.} 66. Kg6 {[%emt 0:00:23][%csl Gg6][%cal Ra7g7]} Qe8+ {[%emt 0:00:21]} 67. Kh6 {[%emt 0:00:31][%csl Gh6][%cal Ra7g7]} Qc6+ {[%emt 0:00:10]} 68. Kg5 {[%emt 0:00:08]} a4 {[%emt 0:00:42]} 69. f6 {[%emt 0:03:15][%csl Gf6][%cal Ra7g7]} Qg2+ {[%emt 0:00:37]} 70. Kf5 {[%emt 0:00:01]} b2 {[%emt 0:01:33]} 71. Qb8+ {[%emt 0:00:46]} Kh7 {[%emt 0:00:24]} 72. f7 $2 {[%emt 0:01:10][%mdl 8192]} (72. Qa7+ $11 Kh6 73. Qe3+ Kh7 74. Qa7+ Kg8 75. Qb8+ Kh7 76. Qa7+) 72... Qg6+ {[%emt 0:00:41] Black mates.} 73. Kf4 {[%emt 0:00:35]} Qxf7+ {[%emt 0:00:22]} 74. Kg5 {[%emt 0:00:42]} Qg6+ {[%emt 0:00:15]} 75. Kh4 {[%emt 0:00:12]} b1=Q {[%emt 0:00:55]} 76. Qb3 {[%emt 0:00:44]} Qh1+ {[%emt 0:00:12] A wild game.  Weighted Error Value: White=0.80/Black=0.57} 0-1